Workbook

Sheet פתרון שאלות אמריקאיות 1-15
J1: פתרון שאלה 1 מהאמריקאיות
C2: שיחזור בחינה יסודות המימון תשע"ט מועד א - 30.6.19
H3: א | I3: ב | J3: ג | K3: ד | L3: ה
H4: =((1+(0.075)/12)^12)-1 -> 7.76% | I4: 7.25% | J4: =((1+0.035)^2)-1 -> 7.12% | K4: =((1+0.0178)^4)-1 -> 7.31% | L4: =((1+0.073/360)^360)-1 -> 7.57%
N14: 5 | O14: 4 | P14: 3 | Q14: 2 | R14: 1
N15: =EFFECT(7.3%,360) -> 7.57% | O15: 1.78% | P15: 3.50% | Q15: 7.25% | R15: =EFFECT(7.5%,12) -> 7.76%
O16: =(1+O15)^4-1 -> 7.31% | P16: =(1+P15)^2-1 -> 7.12%
J23: פתרון שאלה 2 מהאמריקאיות
O39: =(1+Q39)^(1/12)-1 -> 0.49% | P39: R | Q39: 6.00% | R39: R
Q40: 46 | R40: N
O41: =FV(O39,48,,-Q41) -> ₪ 6,312.38 | P41: FV48 | Q41: 5000 | R41: PV
Q42: =PMT(O39,Q40,,O43) -> ₪ -849.67 | R42: PMT
O43: =Q43-O41 -> ₪ 43,687.62 | P43: FV48 | Q43: 50000 | R43: FV
J51: פתרון שאלה 3 מהאמריקאיות
J66: 0 | K66: -100
J67: 1 | K67: 30
J68: 2 | K68: 10
J69: 3 | K69: 10
J70: 4 | K70: 40
J71: 5 | K71: 5
J72: 6 | K72: 5
K74: =IRR(K66:K72) -> 0.00% | L74: IRR | N74: 10.00%
L75: =NPV(N74,K67:K72)-100 -> -23.70
K77: תשובה 1 נכונה
H100: סדרה A | M100: סדרה B
H101: 1900 | I101: FV | M101: 1000 | N101: FV
H102: 4 | I102: T | M102: 4 | N102: T
H103: =3*4 -> 12 | I103: N | J103: שלוש שנים - ברבעונים | M103: =5*4 -> 20 | N103: N
H104: 1900 | I104: PV | M104: =M101*(1-0.1) -> 900 | N104: PV
M105: 9% | N105: I
M106: =M101*M105/M102 -> 22.5 | N106: C
I107: =M107*4 -> 11.67% | M107: =RATE(M103,M106,-M104,M101) -> 2.917% | N107: R | O107: תשואה לפדיון רבעונית
T123: רגיל | Z123: שפיצר
S124: נתונים: | Z124: נתונים:
S125: הלוואה | T125: 6,000,000 | U125: PV | Z125: הלוואה | AA125: 3,000,000 | AB125: PV | AD125: 4.00%
S126: מספר תקופות | T126: =10*12 -> 120 | U126: n | Z126: חודשים | AA126: =5*12 -> 60 | AB126: n | AD126: 12
S127: ריבית | T127: =(1+W127)^(1/12)-1 -> 0.33% | U127: r | W127: 4.00% | X127: Rשנתי | Z127: ריבית | AA127: =AD125/AD126 -> 0.33% | AB127: r
T128: =T125/T126 -> 50000 | U128: קרן קבועה | AA128: =PMT(AA127,AA126,-AA125,,) -> ₪ 55,249.57 | AB128: PMT
S129: מספר תקבול | T129: יתרת הקרן בתחילת תקופה | U129: תשלום ע"ח קרן | V129: תשלום ע"ח ריבית | W129: סך הכל תשלום | X129: יתרת הקרן בסוף התקופה | Z129: מספר תקבול | AA129: יתרת הקרן בתחילת תקופה | AB129: תשלום ע"ח קרן | AC129: תשלום ע"ח ריבית | AD129: סך הכל תשלום | AE129: יתרת הקרן בסוף התקופה
S130: 1 | T130: =T125 -> ₪ 6,000,000.00 | U130: =$T$128 -> ₪ 50,000.00 | V130: =$T$127*T130 -> ₪ 19,642.44 | W130: =V130+U130 -> ₪ 69,642.44 | X130: =T130-U130 -> ₪ 5,950,000.00 | Y130: 61 | Z130: 1 | AA130: =AA125 -> ₪ 3,000,000.00 | AB130: =AD130-AC130 -> ₪ 45,249.57 | AC130: =$AA$127*AA130 -> ₪ 10,000.00 | AD130: =$AA$128 -> ₪ 55,249.57 | AE130: =AA130-AB130 -> ₪ 2,954,750.43
S131: 2 | T131: =X130 -> ₪ 5,950,000.00 | U131: =$T$128 -> ₪ 50,000.00 | V131: =$T$127*T131 -> ₪ 19,478.75 | W131: =V131+U131 -> ₪ 69,478.75 | X131: =T131-U131 -> ₪ 5,900,000.00 | Y131: 62 | Z131: 2 | AA131: =AE130 -> ₪ 2,954,750.43 | AB131: =AD131-AC131 -> ₪ 45,400.40 | AC131: =$AA$127*AA131 -> ₪ 9,849.17 | AD131: =$AA$128 -> ₪ 55,249.57 | AE131: =AA131-AB131 -> ₪ 2,909,350.04
S132: 3 | T132: =X131 -> ₪ 5,900,000.00 | U132: ₪ 50,000.00 | V132: ₪ 19,315.06 | W132: ₪ 69,315.06 | X132: ₪ 5,850,000.00 | Y132: 63 | Z132: 3 | AA132: =AE131 -> ₪ 2,909,350.04 | AB132: ₪ 45,551.73 | AC132: ₪ 9,697.83 | AD132: ₪ 55,249.57 | AE132: ₪ 2,863,798.30
S133: 4 | T133: ₪ 5,850,000.00 | U133: ₪ 50,000.00 | V133: ₪ 19,151.38 | W133: ₪ 69,151.38 | X133: ₪ 5,800,000.00 | Y133: 64 | Z133: 4 | AA133: ₪ 2,863,798.30 | AB133: ₪ 45,703.57 | AC133: ₪ 9,545.99 | AD133: ₪ 55,249.57 | AE133: ₪ 2,818,094.73
S134: 5 | T134: ₪ 5,800,000.00 | U134: ₪ 50,000.00 | V134: ₪ 18,987.69 | W134: ₪ 68,987.69 | X134: ₪ 5,750,000.00 | Y134: 65 | Z134: 5 | AA134: ₪ 2,818,094.73 | AB134: ₪ 45,855.92 | AC134: ₪ 9,393.65 | AD134: ₪ 55,249.57 | AE134: ₪ 2,772,238.81
S135: 6 | T135: ₪ 5,750,000.00 | U135: ₪ 50,000.00 | V135: ₪ 18,824.00 | W135: ₪ 68,824.00 | X135: ₪ 5,700,000.00 | Y135: 66 | Z135: 6 | AA135: ₪ 2,772,238.81 | AB135: ₪ 46,008.77 | AC135: ₪ 9,240.80 | AD135: ₪ 55,249.57 | AE135: ₪ 2,726,230.04
S136: 7 | T136: ₪ 5,700,000.00 | U136: ₪ 50,000.00 | V136: ₪ 18,660.32 | W136: ₪ 68,660.32 | X136: ₪ 5,650,000.00 | Y136: 67 | Z136: 7 | AA136: ₪ 2,726,230.04 | AB136: ₪ 46,162.13 | AC136: ₪ 9,087.43 | AD136: ₪ 55,249.57 | AE136: ₪ 2,680,067.91
S137: 8 | T137: ₪ 5,650,000.00 | U137: ₪ 50,000.00 | V137: ₪ 18,496.63 | W137: ₪ 68,496.63 | X137: ₪ 5,600,000.00 | Y137: 68 | Z137: 8 | AA137: ₪ 2,680,067.91 | AB137: ₪ 46,316.01 | AC137: ₪ 8,933.56 | AD137: ₪ 55,249.57 | AE137: ₪ 2,633,751.90
S138: 9 | T138: ₪ 5,600,000.00 | U138: ₪ 50,000.00 | V138: ₪ 18,332.94 | W138: ₪ 68,332.94 | X138: ₪ 5,550,000.00 | Y138: 69 | Z138: 9 | AA138: ₪ 2,633,751.90 | AB138: ₪ 46,470.39 | AC138: ₪ 8,779.17 | AD138: ₪ 55,249.57 | AE138: ₪ 2,587,281.51
S139: 10 | T139: ₪ 5,550,000.00 | U139: ₪ 50,000.00 | V139: ₪ 18,169.26 | W139: ₪ 68,169.26 | X139: ₪ 5,500,000.00 | Y139: 70 | Z139: 10 | AA139: ₪ 2,587,281.51 | AB139: ₪ 46,625.29 | AC139: ₪ 8,624.27 | AD139: ₪ 55,249.57 | AE139: ₪ 2,540,656.22
S140: 11 | T140: ₪ 5,500,000.00 | U140: ₪ 50,000.00 | V140: ₪ 18,005.57 | W140: ₪ 68,005.57 | X140: ₪ 5,450,000.00 | Y140: 71 | Z140: 11 | AA140: ₪ 2,540,656.22 | AB140: ₪ 46,780.71 | AC140: ₪ 8,468.85 | AD140: ₪ 55,249.57 | AE140: ₪ 2,493,875.51
S141: 12 | T141: ₪ 5,450,000.00 | U141: ₪ 50,000.00 | V141: ₪ 17,841.88 | W141: ₪ 67,841.88 | X141: ₪ 5,400,000.00 | Y141: 72 | Z141: 12 | AA141: ₪ 2,493,875.51 | AB141: ₪ 46,936.65 | AC141: ₪ 8,312.92 | AD141: ₪ 55,249.57 | AE141: ₪ 2,446,938.86
S142: 13 | T142: ₪ 5,400,000.00 | U142: ₪ 50,000.00 | V142: ₪ 17,678.19 | W142: ₪ 67,678.19 | X142: ₪ 5,350,000.00 | Y142: 73 | Z142: 13 | AA142: ₪ 2,446,938.86 | AB142: ₪ 47,093.10 | AC142: ₪ 8,156.46 | AD142: ₪ 55,249.57 | AE142: ₪ 2,399,845.75
S143: 14 | T143: ₪ 5,350,000.00 | U143: ₪ 50,000.00 | V143: ₪ 17,514.51 | W143: ₪ 67,514.51 | X143: ₪ 5,300,000.00 | Y143: 74 | Z143: 14 | AA143: ₪ 2,399,845.75 | AB143: ₪ 47,250.08 | AC143: ₪ 7,999.49 | AD143: ₪ 55,249.57 | AE143: ₪ 2,352,595.67
S144: 15 | T144: ₪ 5,300,000.00 | U144: ₪ 50,000.00 | V144: ₪ 17,350.82 | W144: ₪ 67,350.82 | X144: ₪ 5,250,000.00 | Y144: 75 | Z144: 15 | AA144: ₪ 2,352,595.67 | AB144: ₪ 47,407.58 | AC144: ₪ 7,841.99 | AD144: ₪ 55,249.57 | AE144: ₪ 2,305,188.09
S145: 16 | T145: ₪ 5,250,000.00 | U145: ₪ 50,000.00 | V145: ₪ 17,187.13 | W145: ₪ 67,187.13 | X145: ₪ 5,200,000.00 | Y145: 76 | Z145: 16 | AA145: ₪ 2,305,188.09 | AB145: ₪ 47,565.61 | AC145: ₪ 7,683.96 | AD145: ₪ 55,249.57 | AE145: ₪ 2,257,622.49
S146: 17 | T146: ₪ 5,200,000.00 | U146: ₪ 50,000.00 | V146: ₪ 17,023.45 | W146: ₪ 67,023.45 | X146: ₪ 5,150,000.00 | Y146: 77 | Z146: 17 | AA146: ₪ 2,257,622.49 | AB146: ₪ 47,724.16 | AC146: ₪ 7,525.41 | AD146: ₪ 55,249.57 | AE146: ₪ 2,209,898.33
S147: 18 | T147: ₪ 5,150,000.00 | U147: ₪ 50,000.00 | V147: ₪ 16,859.76 | W147: ₪ 66,859.76 | X147: ₪ 5,100,000.00 | Y147: 78 | Z147: 18 | AA147: ₪ 2,209,898.33 | AB147: ₪ 47,883.24 | AC147: ₪ 7,366.33 | AD147: ₪ 55,249.57 | AE147: ₪ 2,162,015.09
S148: 19 | T148: ₪ 5,100,000.00 | U148: ₪ 50,000.00 | V148: ₪ 16,696.07 | W148: ₪ 66,696.07 | X148: ₪ 5,050,000.00 | Y148: 79 | Z148: 19 | AA148: ₪ 2,162,015.09 | AB148: ₪ 48,042.85 | AC148: ₪ 7,206.72 | AD148: ₪ 55,249.57 | AE148: ₪ 2,113,972.24
S149: 20 | T149: ₪ 5,050,000.00 | U149: ₪ 50,000.00 | V149: ₪ 16,532.39 | W149: ₪ 66,532.39 | X149: ₪ 5,000,000.00 | Y149: 80 | Z149: 20 | AA149: ₪ 2,113,972.24 | AB149: ₪ 48,202.99 | AC149: ₪ 7,046.57 | AD149: ₪ 55,249.57 | AE149: ₪ 2,065,769.25
S150: 21 | T150: ₪ 5,000,000.00 | U150: ₪ 50,000.00 | V150: ₪ 16,368.70 | W150: ₪ 66,368.70 | X150: ₪ 4,950,000.00 | Y150: 81 | Z150: 21 | AA150: ₪ 2,065,769.25 | AB150: ₪ 48,363.67 | AC150: ₪ 6,885.90 | AD150: ₪ 55,249.57 | AE150: ₪ 2,017,405.58
S151: 22 | T151: ₪ 4,950,000.00 | U151: ₪ 50,000.00 | V151: ₪ 16,205.01 | W151: ₪ 66,205.01 | X151: ₪ 4,900,000.00 | Y151: 82 | Z151: 22 | AA151: ₪ 2,017,405.58 | AB151: ₪ 48,524.88 | AC151: ₪ 6,724.69 | AD151: ₪ 55,249.57 | AE151: ₪ 1,968,880.70
S152: 23 | T152: ₪ 4,900,000.00 | U152: ₪ 50,000.00 | V152: ₪ 16,041.32 | W152: ₪ 66,041.32 | X152: ₪ 4,850,000.00 | Y152: 83 | Z152: 23 | AA152: ₪ 1,968,880.70 | AB152: ₪ 48,686.63 | AC152: ₪ 6,562.94 | AD152: ₪ 55,249.57 | AE152: ₪ 1,920,194.07
S153: 24 | T153: ₪ 4,850,000.00 | U153: ₪ 50,000.00 | V153: ₪ 15,877.64 | W153: ₪ 65,877.64 | X153: ₪ 4,800,000.00 | Y153: 84 | Z153: 24 | AA153: ₪ 1,920,194.07 | AB153: ₪ 48,848.92 | AC153: ₪ 6,400.65 | AD153: ₪ 55,249.57 | AE153: ₪ 1,871,345.15
S154: 25 | T154: ₪ 4,800,000.00 | U154: ₪ 50,000.00 | V154: ₪ 15,713.95 | W154: ₪ 65,713.95 | X154: ₪ 4,750,000.00 | Y154: 85 | Z154: 25 | AA154: ₪ 1,871,345.15 | AB154: ₪ 49,011.75 | AC154: ₪ 6,237.82 | AD154: ₪ 55,249.57 | AE154: ₪ 1,822,333.40
S155: 26 | T155: ₪ 4,750,000.00 | U155: ₪ 50,000.00 | V155: ₪ 15,550.26 | W155: ₪ 65,550.26 | X155: ₪ 4,700,000.00 | Y155: 86 | Z155: 26 | AA155: ₪ 1,822,333.40 | AB155: ₪ 49,175.12 | AC155: ₪ 6,074.44 | AD155: ₪ 55,249.57 | AE155: ₪ 1,773,158.28
S156: 27 | T156: ₪ 4,700,000.00 | U156: ₪ 50,000.00 | V156: ₪ 15,386.58 | W156: ₪ 65,386.58 | X156: ₪ 4,650,000.00 | Y156: 87 | Z156: 27 | AA156: ₪ 1,773,158.28 | AB156: ₪ 49,339.04 | AC156: ₪ 5,910.53 | AD156: ₪ 55,249.57 | AE156: ₪ 1,723,819.24
S157: 28 | T157: ₪ 4,650,000.00 | U157: ₪ 50,000.00 | V157: ₪ 15,222.89 | W157: ₪ 65,222.89 | X157: ₪ 4,600,000.00 | Y157: 88 | Z157: 28 | AA157: ₪ 1,723,819.24 | AB157: ₪ 49,503.50 | AC157: ₪ 5,746.06 | AD157: ₪ 55,249.57 | AE157: ₪ 1,674,315.74
S158: 29 | T158: ₪ 4,600,000.00 | U158: ₪ 50,000.00 | V158: ₪ 15,059.20 | W158: ₪ 65,059.20 | X158: ₪ 4,550,000.00 | Y158: 89 | Z158: 29 | AA158: ₪ 1,674,315.74 | AB158: ₪ 49,668.51 | AC158: ₪ 5,581.05 | AD158: ₪ 55,249.57 | AE158: ₪ 1,624,647.23
S159: 30 | T159: ₪ 4,550,000.00 | U159: ₪ 50,000.00 | V159: ₪ 14,895.52 | W159: ₪ 64,895.52 | X159: ₪ 4,500,000.00 | Y159: 90 | Z159: 30 | AA159: ₪ 1,624,647.23 | AB159: ₪ 49,834.08 | AC159: ₪ 5,415.49 | AD159: ₪ 55,249.57 | AE159: ₪ 1,574,813.15
S160: 31 | T160: ₪ 4,500,000.00 | U160: ₪ 50,000.00 | V160: ₪ 14,731.83 | W160: ₪ 64,731.83 | X160: ₪ 4,450,000.00 | Y160: 91 | Z160: 31 | AA160: ₪ 1,574,813.15 | AB160: ₪ 50,000.19 | AC160: ₪ 5,249.38 | AD160: ₪ 55,249.57 | AE160: ₪ 1,524,812.96
S161: 32 | T161: ₪ 4,450,000.00 | U161: ₪ 50,000.00 | V161: ₪ 14,568.14 | W161: ₪ 64,568.14 | X161: ₪ 4,400,000.00 | Y161: 92 | Z161: 32 | AA161: ₪ 1,524,812.96 | AB161: ₪ 50,166.86 | AC161: ₪ 5,082.71 | AD161: ₪ 55,249.57 | AE161: ₪ 1,474,646.11
S162: 33 | T162: ₪ 4,400,000.00 | U162: ₪ 50,000.00 | V162: ₪ 14,404.46 | W162: ₪ 64,404.46 | X162: ₪ 4,350,000.00 | Y162: 93 | Z162: 33 | AA162: ₪ 1,474,646.11 | AB162: ₪ 50,334.08 | AC162: ₪ 4,915.49 | AD162: ₪ 55,249.57 | AE162: ₪ 1,424,312.03
S163: 34 | T163: ₪ 4,350,000.00 | U163: ₪ 50,000.00 | V163: ₪ 14,240.77 | W163: ₪ 64,240.77 | X163: ₪ 4,300,000.00 | Y163: 94 | Z163: 34 | AA163: ₪ 1,424,312.03 | AB163: ₪ 50,501.86 | AC163: ₪ 4,747.71 | AD163: ₪ 55,249.57 | AE163: ₪ 1,373,810.17
H164: א | L164: ב | S164: 35 | T164: ₪ 4,300,000.00 | U164: ₪ 50,000.00 | V164: ₪ 14,077.08 | W164: ₪ 64,077.08 | X164: ₪ 4,250,000.00 | Y164: 95 | Z164: 35 | AA164: ₪ 1,373,810.17 | AB164: ₪ 50,670.20 | AC164: ₪ 4,579.37 | AD164: ₪ 55,249.57 | AE164: ₪ 1,323,139.97
H165: 100000 | I165: PV | K165: 2.00% | L165: R1 | M165: 1.00% | N165: H1 | S165: 36 | T165: ₪ 4,250,000.00 | U165: ₪ 50,000.00 | V165: ₪ 13,913.39 | W165: ₪ 63,913.39 | X165: ₪ 4,200,000.00 | Y165: 96 | Z165: 36 | AA165: ₪ 1,323,139.97 | AB165: ₪ 50,839.10 | AC165: ₪ 4,410.47 | AD165: ₪ 55,249.57 | AE165: ₪ 1,272,300.87
H166: 3 | I166: N | K166: 2.00% | L166: R2 | M166: 2.00% | N166: H2 | S166: 37 | T166: ₪ 4,200,000.00 | U166: ₪ 50,000.00 | V166: ₪ 13,749.71 | W166: ₪ 63,749.71 | X166: ₪ 4,150,000.00 | Y166: 97 | Z166: 37 | AA166: ₪ 1,272,300.87 | AB166: ₪ 51,008.56 | AC166: ₪ 4,241.00 | AD166: ₪ 55,249.57 | AE166: ₪ 1,221,292.30
H167: 3.00% | I167: R | K167: 4.00% | L167: R3 | M167: 0.00% | N167: H3 | S167: 38 | T167: ₪ 4,150,000.00 | U167: ₪ 50,000.00 | V167: ₪ 13,586.02 | W167: ₪ 63,586.02 | X167: ₪ 4,100,000.00 | Y167: 98 | Z167: 38 | AA167: ₪ 1,221,292.30 | AB167: ₪ 51,178.59 | AC167: ₪ 4,070.97 | AD167: ₪ 55,249.57 | AE167: ₪ 1,170,113.71
I168: =FV(H167,H166,,-H165) -> ₪ 109,272.70 | O168: =FV(K165,1,,H165) -> ₪ -102,000.00 | P168: FV1 | S168: 39 | T168: ₪ 4,100,000.00 | U168: ₪ 50,000.00 | V168: ₪ 13,422.33 | W168: ₪ 63,422.33 | X168: ₪ 4,050,000.00 | Y168: 99 | Z168: 39 | AA168: ₪ 1,170,113.71 | AB168: ₪ 51,349.19 | AC168: ₪ 3,900.38 | AD168: ₪ 55,249.57 | AE168: ₪ 1,118,764.53
O169: =FV(K166,1,,O168) -> ₪ 104,040.00 | P169: FV2 | S169: 40 | T169: ₪ 4,050,000.00 | U169: ₪ 50,000.00 | V169: ₪ 13,258.65 | W169: ₪ 63,258.65 | X169: ₪ 4,000,000.00 | Y169: 100 | Z169: 40 | AA169: ₪ 1,118,764.53 | AB169: ₪ 51,520.35 | AC169: ₪ 3,729.22 | AD169: ₪ 55,249.57 | AE169: ₪ 1,067,244.17
O170: =FV(K167,1,,-O169)*(1+M165)*(1+M166)*(1+M167) -> ₪ 111,469.29 | P170: FV3 | S170: 41 | T170: ₪ 4,000,000.00 | U170: ₪ 50,000.00 | V170: ₪ 13,094.96 | W170: ₪ 63,094.96 | X170: ₪ 3,950,000.00 | Y170: 101 | Z170: 41 | AA170: ₪ 1,067,244.17 | AB170: ₪ 51,692.09 | AC170: ₪ 3,557.48 | AD170: ₪ 55,249.57 | AE170: ₪ 1,015,552.09
S171: 42 | T171: ₪ 3,950,000.00 | U171: ₪ 50,000.00 | V171: ₪ 12,931.27 | W171: ₪ 62,931.27 | X171: ₪ 3,900,000.00 | Y171: 102 | Z171: 42 | AA171: ₪ 1,015,552.09 | AB171: ₪ 51,864.39 | AC171: ₪ 3,385.17 | AD171: ₪ 55,249.57 | AE171: ₪ 963,687.70
D172: א | S172: 43 | T172: ₪ 3,900,000.00 | U172: ₪ 50,000.00 | V172: ₪ 12,767.59 | W172: ₪ 62,767.59 | X172: ₪ 3,850,000.00 | Y172: 103 | Z172: 43 | AA172: ₪ 963,687.70 | AB172: ₪ 52,037.27 | AC172: ₪ 3,212.29 | AD172: ₪ 55,249.57 | AE172: ₪ 911,650.42
S173: 44 | T173: ₪ 3,850,000.00 | U173: ₪ 50,000.00 | V173: ₪ 12,603.90 | W173: ₪ 62,603.90 | X173: ₪ 3,800,000.00 | Y173: 104 | Z173: 44 | AA173: ₪ 911,650.42 | AB173: ₪ 52,210.73 | AC173: ₪ 3,038.83 | AD173: ₪ 55,249.57 | AE173: ₪ 859,439.69
S174: 45 | T174: ₪ 3,800,000.00 | U174: ₪ 50,000.00 | V174: ₪ 12,440.21 | W174: ₪ 62,440.21 | X174: ₪ 3,750,000.00 | Y174: 105 | Z174: 45 | AA174: ₪ 859,439.69 | AB174: ₪ 52,384.77 | AC174: ₪ 2,864.80 | AD174: ₪ 55,249.57 | AE174: ₪ 807,054.92
S175: 46 | T175: ₪ 3,750,000.00 | U175: ₪ 50,000.00 | V175: ₪ 12,276.52 | W175: ₪ 62,276.52 | X175: ₪ 3,700,000.00 | Y175: 106 | Z175: 46 | AA175: ₪ 807,054.92 | AB175: ₪ 52,559.38 | AC175: ₪ 2,690.18 | AD175: ₪ 55,249.57 | AE175: ₪ 754,495.54
S176: 47 | T176: ₪ 3,700,000.00 | U176: ₪ 50,000.00 | V176: ₪ 12,112.84 | W176: ₪ 62,112.84 | X176: ₪ 3,650,000.00 | Y176: 107 | Z176: 47 | AA176: ₪ 754,495.54 | AB176: ₪ 52,734.58 | AC176: ₪ 2,514.99 | AD176: ₪ 55,249.57 | AE176: ₪ 701,760.96
S177: 48 | T177: ₪ 3,650,000.00 | U177: ₪ 50,000.00 | V177: ₪ 11,949.15 | W177: ₪ 61,949.15 | X177: ₪ 3,600,000.00 | Y177: 108 | Z177: 48 | AA177: ₪ 701,760.96 | AB177: ₪ 52,910.36 | AC177: ₪ 2,339.20 | AD177: ₪ 55,249.57 | AE177: ₪ 648,850.60
S178: 49 | T178: ₪ 3,600,000.00 | U178: ₪ 50,000.00 | V178: ₪ 11,785.46 | W178: ₪ 61,785.46 | X178: ₪ 3,550,000.00 | Y178: 109 | Z178: 49 | AA178: ₪ 648,850.60 | AB178: ₪ 53,086.73 | AC178: ₪ 2,162.84 | AD178: ₪ 55,249.57 | AE178: ₪ 595,763.87
S179: 50 | T179: ₪ 3,550,000.00 | U179: ₪ 50,000.00 | V179: ₪ 11,621.78 | W179: ₪ 61,621.78 | X179: ₪ 3,500,000.00 | Y179: 110 | Z179: 50 | AA179: ₪ 595,763.87 | AB179: ₪ 53,263.69 | AC179: ₪ 1,985.88 | AD179: ₪ 55,249.57 | AE179: ₪ 542,500.18
S180: 51 | T180: ₪ 3,500,000.00 | U180: ₪ 50,000.00 | V180: ₪ 11,458.09 | W180: ₪ 61,458.09 | X180: ₪ 3,450,000.00 | Y180: 111 | Z180: 51 | AA180: ₪ 542,500.18 | AB180: ₪ 53,441.23 | AC180: ₪ 1,808.33 | AD180: ₪ 55,249.57 | AE180: ₪ 489,058.95
S181: 52 | T181: ₪ 3,450,000.00 | U181: ₪ 50,000.00 | V181: ₪ 11,294.40 | W181: ₪ 61,294.40 | X181: ₪ 3,400,000.00 | Y181: 112 | Z181: 52 | AA181: ₪ 489,058.95 | AB181: ₪ 53,619.37 | AC181: ₪ 1,630.20 | AD181: ₪ 55,249.57 | AE181: ₪ 435,439.58
S182: 53 | T182: ₪ 3,400,000.00 | U182: ₪ 50,000.00 | V182: ₪ 11,130.72 | W182: ₪ 61,130.72 | X182: ₪ 3,350,000.00 | Y182: 113 | Z182: 53 | AA182: ₪ 435,439.58 | AB182: ₪ 53,798.10 | AC182: ₪ 1,451.47 | AD182: ₪ 55,249.57 | AE182: ₪ 381,641.48
S183: 54 | T183: ₪ 3,350,000.00 | U183: ₪ 50,000.00 | V183: ₪ 10,967.03 | W183: ₪ 60,967.03 | X183: ₪ 3,300,000.00 | Y183: 114 | Z183: 54 | AA183: ₪ 381,641.48 | AB183: ₪ 53,977.43 | AC183: ₪ 1,272.14 | AD183: ₪ 55,249.57 | AE183: ₪ 327,664.05
S184: 55 | T184: ₪ 3,300,000.00 | U184: ₪ 50,000.00 | V184: ₪ 10,803.34 | W184: ₪ 60,803.34 | X184: ₪ 3,250,000.00 | Y184: 115 | Z184: 55 | AA184: ₪ 327,664.05 | AB184: ₪ 54,157.35 | AC184: ₪ 1,092.21 | AD184: ₪ 55,249.57 | AE184: ₪ 273,506.70
S185: 56 | T185: ₪ 3,250,000.00 | U185: ₪ 50,000.00 | V185: ₪ 10,639.65 | W185: ₪ 60,639.65 | X185: ₪ 3,200,000.00 | Y185: 116 | Z185: 56 | AA185: ₪ 273,506.70 | AB185: ₪ 54,337.88 | AC185: ₪ 911.69 | AD185: ₪ 55,249.57 | AE185: ₪ 219,168.82
S186: 57 | T186: ₪ 3,200,000.00 | U186: ₪ 50,000.00 | V186: ₪ 10,475.97 | W186: ₪ 60,475.97 | X186: ₪ 3,150,000.00 | Y186: 117 | Z186: 57 | AA186: ₪ 219,168.82 | AB186: ₪ 54,519.00 | AC186: ₪ 730.56 | AD186: ₪ 55,249.57 | AE186: ₪ 164,649.82
S187: 58 | T187: ₪ 3,150,000.00 | U187: ₪ 50,000.00 | V187: ₪ 10,312.28 | W187: ₪ 60,312.28 | X187: ₪ 3,100,000.00 | Y187: 118 | Z187: 58 | AA187: ₪ 164,649.82 | AB187: ₪ 54,700.73 | AC187: ₪ 548.83 | AD187: ₪ 55,249.57 | AE187: ₪ 109,949.08
S188: 59 | T188: ₪ 3,100,000.00 | U188: ₪ 50,000.00 | V188: ₪ 10,148.59 | W188: ₪ 60,148.59 | X188: ₪ 3,050,000.00 | Y188: 119 | Z188: 59 | AA188: ₪ 109,949.08 | AB188: ₪ 54,883.07 | AC188: ₪ 366.50 | AD188: ₪ 55,249.57 | AE188: ₪ 55,066.01
S189: 60 | T189: ₪ 3,050,000.00 | U189: ₪ 50,000.00 | V189: ₪ 9,984.91 | W189: ₪ 59,984.91 | X189: ₪ 3,000,000.00 | Y189: 120 | Z189: 60 | AA189: ₪ 55,066.01 | AB189: ₪ 55,066.01 | AC189: ₪ 183.55 | AD189: ₪ 55,249.57 | AE189: ₪ 0.00
S190: 61 | T190: ₪ 3,000,000.00 | U190: ₪ 50,000.00 | V190: ₪ 9,821.22 | W190: ₪ 59,821.22 | X190: ₪ 2,950,000.00
S191: 62 | T191: ₪ 2,950,000.00 | U191: ₪ 50,000.00 | V191: ₪ 9,657.53 | W191: ₪ 59,657.53 | X191: ₪ 2,900,000.00
N192: B | O192: A | S192: 63 | T192: ₪ 2,900,000.00 | U192: ₪ 50,000.00 | V192: ₪ 9,493.85 | W192: ₪ 59,493.85 | X192: ₪ 2,850,000.00
N193: -200 | O193: -800 | S193: 64 | T193: ₪ 2,850,000.00 | U193: ₪ 50,000.00 | V193: ₪ 9,330.16 | W193: ₪ 59,330.16 | X193: ₪ 2,800,000.00
N194: 250 | O194: 500 | S194: 65 | T194: ₪ 2,800,000.00 | U194: ₪ 50,000.00 | V194: ₪ 9,166.47 | W194: ₪ 59,166.47 | X194: ₪ 2,750,000.00
N195: 50 | O195: 400 | S195: 66 | T195: ₪ 2,750,000.00 | U195: =$T$128 -> ₪ 50,000.00 | V195: =$T$127*T195 -> ₪ 9,002.78 | W195: =V195+U195 -> ₪ 59,002.78 | X195: =T195-U195 -> ₪ 2,700,000.00
N196: 50 | O196: 300 | S196: 67 | T196: =X195 -> ₪ 2,700,000.00 | U196: ₪ 50,000.00 | V196: ₪ 8,839.10 | W196: ₪ 58,839.10 | X196: ₪ 2,650,000.00
I197: =IRR(N193:N196) -> 52.21% | J197: =IRR(O193:O196) -> 25.88% | S197: 68 | T197: ₪ 2,650,000.00 | U197: ₪ 50,000.00 | V197: ₪ 8,675.41 | W197: ₪ 58,675.41 | X197: ₪ 2,600,000.00
S198: 69 | T198: ₪ 2,600,000.00 | U198: ₪ 50,000.00 | V198: ₪ 8,511.72 | W198: ₪ 58,511.72 | X198: ₪ 2,550,000.00
I199: NPVB | J199: NPVA | S199: 70 | T199: ₪ 2,550,000.00 | U199: ₪ 50,000.00 | V199: ₪ 8,348.04 | W199: ₪ 58,348.04 | X199: ₪ 2,500,000.00
I200: =NPV(K200,$N$194:$N$196)-200 -> ₪ 150.00 | J200: =NPV(K200,$O$194:$O196)-800 -> ₪ 400.00 | K200: 0.00% | S200: 71 | T200: ₪ 2,500,000.00 | U200: ₪ 50,000.00 | V200: ₪ 8,184.35 | W200: ₪ 58,184.35 | X200: ₪ 2,450,000.00
I201: =NPV(K201,$N$194:$N$196)-200 -> ₪ 145.07 | J201: =NPV(K201,$O$194:$O197)-800 -> ₪ 378.34 | K201: 1.00% | S201: 72 | T201: ₪ 2,450,000.00 | U201: ₪ 50,000.00 | V201: ₪ 8,020.66 | W201: ₪ 58,020.66 | X201: ₪ 2,400,000.00
I202: ₪ 140.27 | J202: =NPV(K202,$O$194:$O198)-800 -> ₪ 357.36 | K202: 2.00% | S202: 73 | T202: ₪ 2,400,000.00 | U202: ₪ 50,000.00 | V202: ₪ 7,856.98 | W202: ₪ 57,856.98 | X202: ₪ 2,350,000.00
I203: ₪ 135.61 | J203: =NPV(K203,$O$194:$O199)-800 -> ₪ 337.02 | K203: 3.00% | S203: 74 | T203: ₪ 2,350,000.00 | U203: ₪ 50,000.00 | V203: ₪ 7,693.29 | W203: ₪ 57,693.29 | X203: ₪ 2,300,000.00
I204: ₪ 131.06 | J204: =NPV(K204,$O$194:$O200)-800 -> ₪ 317.29 | K204: 4.00% | S204: 75 | T204: ₪ 2,300,000.00 | U204: ₪ 50,000.00 | V204: ₪ 7,529.60 | W204: ₪ 57,529.60 | X204: ₪ 2,250,000.00
I205: ₪ 126.64 | J205: =NPV(K205,$O$194:$O201)-800 -> ₪ 298.15 | K205: 5.00% | S205: 76 | T205: ₪ 2,250,000.00 | U205: ₪ 50,000.00 | V205: ₪ 7,365.91 | W205: ₪ 57,365.91 | X205: ₪ 2,200,000.00
I206: ₪ 122.33 | J206: =NPV(K206,$O$194:$O202)-800 -> ₪ 279.58 | K206: 6.00% | S206: 77 | T206: ₪ 2,200,000.00 | U206: ₪ 50,000.00 | V206: ₪ 7,202.23 | W206: ₪ 57,202.23 | X206: ₪ 2,150,000.00
I207: ₪ 118.13 | J207: =NPV(K207,$O$194:$O203)-800 -> ₪ 261.55 | K207: 7.00% | S207: 78 | T207: ₪ 2,150,000.00 | U207: ₪ 50,000.00 | V207: ₪ 7,038.54 | W207: ₪ 57,038.54 | X207: ₪ 2,100,000.00
I208: ₪ 114.04 | J208: =NPV(K208,$O$194:$O204)-800 -> ₪ 244.05 | K208: 8.00% | S208: 79 | T208: ₪ 2,100,000.00 | U208: ₪ 50,000.00 | V208: ₪ 6,874.85 | W208: ₪ 56,874.85 | X208: ₪ 2,050,000.00
I209: ₪ 110.05 | J209: =NPV(K209,$O$194:$O205)-800 -> ₪ 227.04 | K209: 9.00% | S209: 80 | T209: ₪ 2,050,000.00 | U209: ₪ 50,000.00 | V209: ₪ 6,711.17 | W209: ₪ 56,711.17 | X209: ₪ 2,000,000.00
I210: ₪ 106.16 | J210: =NPV(K210,$O$194:$O206)-800 -> ₪ 210.52 | K210: 10.00% | S210: 81 | T210: ₪ 2,000,000.00 | U210: ₪ 50,000.00 | V210: ₪ 6,547.48 | W210: ₪ 56,547.48 | X210: ₪ 1,950,000.00
I211: ₪ 102.37 | J211: =NPV(K211,$O$194:$O207)-800 -> ₪ 194.46 | K211: 11.00% | S211: 82 | T211: ₪ 1,950,000.00 | U211: ₪ 50,000.00 | V211: ₪ 6,383.79 | W211: ₪ 56,383.79 | X211: ₪ 1,900,000.00
I212: ₪ 98.66 | J212: =NPV(K212,$O$194:$O208)-800 -> ₪ 178.84 | K212: 12.00% | S212: 83 | T212: ₪ 1,900,000.00 | U212: ₪ 50,000.00 | V212: ₪ 6,220.11 | W212: ₪ 56,220.11 | X212: ₪ 1,850,000.00
I213: ₪ 95.05 | J213: =NPV(K213,$O$194:$O209)-800 -> ₪ 163.65 | K213: 13.00% | S213: 84 | T213: ₪ 1,850,000.00 | U213: ₪ 50,000.00 | V213: ₪ 6,056.42 | W213: ₪ 56,056.42 | X213: ₪ 1,800,000.00
I214: ₪ 91.52 | J214: =NPV(K214,$O$194:$O210)-800 -> ₪ 148.87 | K214: 14.00% | S214: 85 | T214: ₪ 1,800,000.00 | U214: ₪ 50,000.00 | V214: ₪ 5,892.73 | W214: ₪ 55,892.73 | X214: ₪ 1,750,000.00
I215: ₪ 88.07 | J215: =NPV(K215,$O$194:$O211)-800 -> ₪ 134.49 | K215: 15.00% | S215: 86 | T215: ₪ 1,750,000.00 | U215: ₪ 50,000.00 | V215: ₪ 5,729.04 | W215: ₪ 55,729.04 | X215: ₪ 1,700,000.00
I216: ₪ 84.71 | J216: =NPV(K216,$O$194:$O212)-800 -> ₪ 120.50 | K216: 16.00% | S216: 87 | T216: ₪ 1,700,000.00 | U216: ₪ 50,000.00 | V216: ₪ 5,565.36 | W216: ₪ 55,565.36 | X216: ₪ 1,650,000.00
I217: ₪ 81.42 | J217: =NPV(K217,$O$194:$O213)-800 -> ₪ 106.87 | K217: 17.00% | S217: 88 | T217: ₪ 1,650,000.00 | U217: ₪ 50,000.00 | V217: ₪ 5,401.67 | W217: ₪ 55,401.67 | X217: ₪ 1,600,000.00
I218: ₪ 78.21 | J218: =NPV(K218,$O$194:$O214)-800 -> ₪ 93.59 | K218: 18.00% | S218: 89 | T218: ₪ 1,600,000.00 | U218: ₪ 50,000.00 | V218: ₪ 5,237.98 | W218: ₪ 55,237.98 | X218: ₪ 1,550,000.00
I219: ₪ 75.06 | J219: =NPV(K219,$O$194:$O215)-800 -> ₪ 80.66 | K219: 19.00% | S219: 90 | T219: ₪ 1,550,000.00 | U219: ₪ 50,000.00 | V219: ₪ 5,074.30 | W219: ₪ 55,074.30 | X219: ₪ 1,500,000.00
I220: ₪ 71.99 | J220: =NPV(K220,$O$194:$O216)-800 -> ₪ 68.06 | K220: 20.00% | S220: 91 | T220: ₪ 1,500,000.00 | U220: ₪ 50,000.00 | V220: ₪ 4,910.61 | W220: ₪ 54,910.61 | X220: ₪ 1,450,000.00
I221: ₪ 68.99 | J221: =NPV(K221,$O$194:$O217)-800 -> ₪ 55.77 | K221: 21.00% | S221: 92 | T221: ₪ 1,450,000.00 | U221: ₪ 50,000.00 | V221: ₪ 4,746.92 | W221: ₪ 54,746.92 | X221: ₪ 1,400,000.00
I222: ₪ 66.05 | J222: =NPV(K222,$O$194:$O218)-800 -> ₪ 43.79 | K222: 22.00% | S222: 93 | T222: ₪ 1,400,000.00 | U222: ₪ 50,000.00 | V222: ₪ 4,583.24 | W222: ₪ 54,583.24 | X222: ₪ 1,350,000.00
I223: ₪ 63.17 | J223: =NPV(K223,$O$194:$O219)-800 -> ₪ 32.11 | K223: 23.00% | S223: 94 | T223: ₪ 1,350,000.00 | U223: ₪ 50,000.00 | V223: ₪ 4,419.55 | W223: ₪ 54,419.55 | X223: ₪ 1,300,000.00
I224: ₪ 60.36 | J224: =NPV(K224,$O$194:$O220)-800 -> ₪ 20.72 | K224: 24.00% | S224: 95 | T224: ₪ 1,300,000.00 | U224: ₪ 50,000.00 | V224: ₪ 4,255.86 | W224: ₪ 54,255.86 | X224: ₪ 1,250,000.00
S225: 96 | T225: ₪ 1,250,000.00 | U225: ₪ 50,000.00 | V225: ₪ 4,092.17 | W225: ₪ 54,092.17 | X225: ₪ 1,200,000.00
S226: 97 | T226: ₪ 1,200,000.00 | U226: ₪ 50,000.00 | V226: ₪ 3,928.49 | W226: ₪ 53,928.49 | X226: ₪ 1,150,000.00
S227: 98 | T227: ₪ 1,150,000.00 | U227: ₪ 50,000.00 | V227: ₪ 3,764.80 | W227: ₪ 53,764.80 | X227: ₪ 1,100,000.00
S228: 99 | T228: ₪ 1,100,000.00 | U228: ₪ 50,000.00 | V228: ₪ 3,601.11 | W228: ₪ 53,601.11 | X228: ₪ 1,050,000.00
S229: 100 | T229: ₪ 1,050,000.00 | U229: ₪ 50,000.00 | V229: ₪ 3,437.43 | W229: ₪ 53,437.43 | X229: ₪ 1,000,000.00
S230: 101 | T230: ₪ 1,000,000.00 | U230: ₪ 50,000.00 | V230: ₪ 3,273.74 | W230: ₪ 53,273.74 | X230: ₪ 950,000.00
S231: 102 | T231: ₪ 950,000.00 | U231: ₪ 50,000.00 | V231: ₪ 3,110.05 | W231: ₪ 53,110.05 | X231: ₪ 900,000.00
S232: 103 | T232: ₪ 900,000.00 | U232: ₪ 50,000.00 | V232: ₪ 2,946.37 | W232: ₪ 52,946.37 | X232: ₪ 850,000.00
S233: 104 | T233: ₪ 850,000.00 | U233: ₪ 50,000.00 | V233: ₪ 2,782.68 | W233: ₪ 52,782.68 | X233: ₪ 800,000.00
S234: 105 | T234: ₪ 800,000.00 | U234: ₪ 50,000.00 | V234: ₪ 2,618.99 | W234: ₪ 52,618.99 | X234: ₪ 750,000.00
S235: 106 | T235: ₪ 750,000.00 | U235: ₪ 50,000.00 | V235: ₪ 2,455.30 | W235: ₪ 52,455.30 | X235: ₪ 700,000.00
S236: 107 | T236: ₪ 700,000.00 | U236: ₪ 50,000.00 | V236: ₪ 2,291.62 | W236: ₪ 52,291.62 | X236: ₪ 650,000.00
S237: 108 | T237: ₪ 650,000.00 | U237: ₪ 50,000.00 | V237: ₪ 2,127.93 | W237: ₪ 52,127.93 | X237: ₪ 600,000.00
S238: 109 | T238: ₪ 600,000.00 | U238: ₪ 50,000.00 | V238: ₪ 1,964.24 | W238: ₪ 51,964.24 | X238: ₪ 550,000.00
S239: 110 | T239: ₪ 550,000.00 | U239: ₪ 50,000.00 | V239: ₪ 1,800.56 | W239: ₪ 51,800.56 | X239: ₪ 500,000.00
S240: 111 | T240: ₪ 500,000.00 | U240: ₪ 50,000.00 | V240: ₪ 1,636.87 | W240: ₪ 51,636.87 | X240: ₪ 450,000.00
S241: 112 | T241: ₪ 450,000.00 | U241: ₪ 50,000.00 | V241: ₪ 1,473.18 | W241: ₪ 51,473.18 | X241: ₪ 400,000.00
S242: 113 | T242: ₪ 400,000.00 | U242: ₪ 50,000.00 | V242: ₪ 1,309.50 | W242: ₪ 51,309.50 | X242: ₪ 350,000.00
S243: 114 | T243: ₪ 350,000.00 | U243: ₪ 50,000.00 | V243: ₪ 1,145.81 | W243: ₪ 51,145.81 | X243: ₪ 300,000.00
S244: 115 | T244: ₪ 300,000.00 | U244: ₪ 50,000.00 | V244: ₪ 982.12 | W244: ₪ 50,982.12 | X244: ₪ 250,000.00
S245: 116 | T245: ₪ 250,000.00 | U245: ₪ 50,000.00 | V245: ₪ 818.43 | W245: ₪ 50,818.43 | X245: ₪ 200,000.00
S246: 117 | T246: ₪ 200,000.00 | U246: ₪ 50,000.00 | V246: ₪ 654.75 | W246: ₪ 50,654.75 | X246: ₪ 150,000.00
S247: 118 | T247: ₪ 150,000.00 | U247: ₪ 50,000.00 | V247: ₪ 491.06 | W247: ₪ 50,491.06 | X247: ₪ 100,000.00
S248: 119 | T248: ₪ 100,000.00 | U248: ₪ 50,000.00 | V248: ₪ 327.37 | W248: ₪ 50,327.37 | X248: ₪ 50,000.00
S249: 120 | T249: ₪ 50,000.00 | U249: ₪ 50,000.00 | V249: ₪ 163.69 | W249: ₪ 50,163.69 | X249: ₪ 0.00
I251: 100000 | J251: pv
I252: 5% | J252: r
I253: 5 | J253: n
I254: =FV(I252,I253,,-I251) -> ₪ 127,628.16 | J254: fv
I255: 500000 | J255: יעד
I256: =I255-I254 -> ₪ 372,371.84 | J256: חסר
I257: =PV(I252,2,,-I256) -> ₪ 337,752.24 | J257: pv 3
J276: 1 | K276: 0 | N276: 10000 | O276: PV
J277: =FV(N279,N278,,-N276) -> ₪ 11,261.62 | K277: 10000 | N277: 12.00% | O277: R שנתי
K278: -500 | N278: 6 | O278: תקופות דו חודשיות
J279: =J277 -> ₪ 11,261.62 | K279: =K277+K278 -> 9500 | N279: =N277/N278 -> 2.00% | O279: R דו חודשי
N280: 500 | O280: עמלה
K281: =RATE(1,,-K279,J279) -> 18.54%
J311: פתרון שאלה 11 מהאמריקאיות
H316: שנות הפנסיה:
H317: 240 | I317: מספר תקופות
H318: 12% | I318: ריבית שנתית נקובה | K318: 12
H319: =H318/K318 -> 1% | I319: ריבית חודשית
H320: 500 | I320: קצבה חודשית
H321: 0 | I321: type
I323: =PV(H319,H317,-H320,,) -> 45,409.71 | J323: זה הסכום שצריך להצטבר בגיל 67 על מנת שגדי יוכל לקבל את הקצבה הרצויה.
H325: שנות החסכון:
H326: 444 | I326: מספר תקופות
I328: =PV(H319,H326,,-I323) -> 547.59 | J328: הסכום שגדי צריך להפקיד היום
H354: 1 | I354: רגיל
H355: 2 | I355: שפיצר
H356: 3 | I356: גרייס לקרן
H357: 4 | I357: בלון
H407: ערוץ התקשורת | I407: השקעה ראשונית נדרשת | J407: ערך נוכחי נקי של ההשקעה | K407: מדד הרווחיות
H408: Facebook | I408: 700,000 | J408: 560,000 | K408: =J408/I408 -> 0.8
H409: Instagram | I409: 650,000 | J409: =K409*I409 -> 260000 | K409: 0.4 | M409: 1,400,000
H410: טלוויזיה | I410: 250,000 | J410: 150,000 | K410: =J410/I410 -> 0.6
H411: עיתונות כתובה | I411: 100,000 | J411: =K411*I411 -> 30000 | K411: 0.3
H412: WhatsApp | I412: 500,000 | J412: 125,000 | K412: 0.25
H414: הפרוייקטים הנבחרים | I414: ענ"נ | J414: מדד רווחיות | K414: יתרת תקציב
H415: Facebook | I415: =J408 -> 560,000 | J415: 0.80 | K415: =M409-I408 -> 700,000
H416: טלוויזיה | I416: =J410 -> 150,000 | J416: 0.60 | K416: =K415-I410 -> 450,000
H417: Instagram | I417: =K416/I409*J409 -> 180000 | J417: 0.40 | K417: 0
I418: =SUM(I415:I417) -> 890,000
H455: 1000 | I455: מחיר
H456: 2% | I456: עליית מחירים
... 23 more rows

Sheet פתרון שאלה פתוחה
M1: סעיף א
M3: נתונים:
M4: הלוואה | S4: הנפקת אג"ח
M5: תשלום חודשי | O5: 12,500 | S5: ערך נקוב | U5: 1,000,000
M6: תקופות בחודשים | O6: =9*Q7 -> 108 | S6: ריבית שנתית נקובה | U6: 13%
M7: ריבית אפקטיבית שנתית | O7: 7.44% | Q7: 12 | S7: מרווח בין קופונים | U7: 4
M8: ריבית חודשית | O8: =(1+O7)^(1/Q7)-1 -> 0.60% | S8: תשואה שנתית לפדיון | U8: 12.55%
M9: type | O9: 0 | S9: מספר קופונים | U9: 36
S10: קופון | U10: =U5*U6/U7 -> 32,500
M11: סעיף א | S11: תשואה רבעונית | U11: =(1+U8)^(1/U7)-1 -> 3.00%
M12: נחשב את סכום ההלוואה המוצע לחברה: | S12: type | U12: 0
N14: =PV(O8,O6,-O5,,O9) -> 991,464.09
M16: נחשב את המחיר שתקבל החברה עבור האג"ח בהנפקה:
N18: =PV(U11,U9,-U10,-U5,U12) -> 1,054,626.28
M20: בהנתן שהחברה מעוניינת לגייס לפחות מיליון ש"ח, הרי שהיא תבחר באפשרות הנפקת האג"ח.
M23: סעיף ב
M24: נתונים:
M25: הלוואה
M26: תשלום חודשי | O26: 12,500
M27: תקופות בחודשים | O27: =9*Q28 -> 108
M28: ריבית אפקטיבית שנתית | O28: 7.44% | Q28: 12
M29: ריבית חודשית | O29: =(1+O28)^(1/Q28)-1 -> 0.60%
M30: type | O30: 0
M32: סעיף א
M33: נחשב את סכום ההלוואה המוצע לחברה:
N35: =PV(O29,O27,-O26,,O30) -> 991,464.09
M37: נתונים: | Q37: א. תשלום קרן 50 | R37: =O92 -> ₪ 8,782.89
M38: הלוואה | N38: =N35 -> 991,464 | O38: PV | Q38: ב. תשלום ריבית 50 | R38: =P92 -> 3,717
M39: חודשים | N39: =O27 -> 108 | O39: n | Q39: ג. פירעון בתקופה 60 | R39: =R102 -> ₪ 519,989.17
M40: ריבית | N40: =O29 -> 0.60% | O40: r
H41: הנפקת אג"ח | N41: =PMT(N40,N39,-N38,,) -> ₪ 12,500.00 | O41: PMT
B42: סעיף ג | H42: ערך נקוב | J42: 1,000,000 | M42: מספר תקבול | N42: יתרת הקרן בתחילת תקופה | O42: תשלום ע"ח קרן | P42: תשלום ע"ח ריבית | Q42: סך הכל תשלום | R42: יתרת הקרן בסוף התקופה
B43: ג1 | H43: ריבית שנתית נקובה | J43: 13% | M43: 1 | N43: =N38 -> ₪ 991,464.09 | O43: =Q43-P43 -> ₪ 6,551.54 | P43: =$N$40*N43 -> ₪ 5,948.46 | Q43: =$N$41 -> ₪ 12,500.00 | R43: =N43-O43 -> ₪ 984,912.55
C44: =PV(J48,35,J47,J42) -> ₪ -999,886.70 | H44: מרווח בין קופונים | J44: 4 | M44: 2 | N44: =R43 -> ₪ 984,912.55 | O44: =Q44-P44 -> ₪ 6,590.84 | P44: =$N$40*N44 -> ₪ 5,909.16 | Q44: =$N$41 -> ₪ 12,500.00 | R44: =N44-O44 -> ₪ 978,321.70
H45: תשואה שנתית לפדיון | J45: 13.65% | M45: 3 | N45: =R44 -> ₪ 978,321.70 | O45: ₪ 6,630.39 | P45: ₪ 5,869.61 | Q45: ₪ 12,500.00 | R45: ₪ 971,691.32
B46: ג2 | D46: 1 | E46: 0 | H46: מספר קופונים | J46: 36 | M46: 4 | N46: ₪ 971,691.32 | O46: ₪ 6,670.17 | P46: ₪ 5,829.83 | Q46: ₪ 12,500.00 | R46: ₪ 965,021.15
D47: =J47 -> 32,500 | E47: =N18 -> 1,054,626.28 | H47: קופון | J47: =J42*J43/J44 -> 32,500 | M47: 5 | N47: ₪ 965,021.15 | O47: ₪ 6,710.19 | P47: ₪ 5,789.81 | Q47: ₪ 12,500.00 | R47: ₪ 958,310.96
D48: =-C44 -> ₪ 999,886.70 | H48: תשואה רבעונית | J48: =(1+J45)^(1/J44)-1 -> 3.25% | M48: 6 | N48: ₪ 958,310.96 | O48: =Q48-P48 -> ₪ 6,750.45 | P48: ₪ 5,749.55 | Q48: ₪ 12,500.00 | R48: ₪ 951,560.52
D49: =D48+D47 -> ₪ 1,032,386.70 | E49: =E47 -> 1,054,626.28 | H49: type | J49: 0 | M49: 7 | N49: ₪ 951,560.52 | O49: ₪ 6,790.95 | P49: ₪ 5,709.05 | Q49: ₪ 12,500.00 | R49: ₪ 944,769.57
M50: 8 | N50: ₪ 944,769.57 | O50: ₪ 6,831.69 | P50: ₪ 5,668.31 | Q50: ₪ 12,500.00 | R50: ₪ 937,937.88
E51: =RATE(1,,-E49,D49) -> -2.11% | M51: 9 | N51: ₪ 937,937.88 | O51: ₪ 6,872.68 | P51: ₪ 5,627.32 | Q51: ₪ 12,500.00 | R51: ₪ 931,065.20
M52: 10 | N52: ₪ 931,065.20 | O52: ₪ 6,913.91 | P52: ₪ 5,586.09 | Q52: ₪ 12,500.00 | R52: ₪ 924,151.29
M53: 11 | N53: ₪ 924,151.29 | O53: ₪ 6,955.39 | P53: ₪ 5,544.61 | Q53: ₪ 12,500.00 | R53: ₪ 917,195.90
M54: 12 | N54: ₪ 917,195.90 | O54: ₪ 6,997.12 | P54: ₪ 5,502.88 | Q54: ₪ 12,500.00 | R54: ₪ 910,198.77
M55: 13 | N55: ₪ 910,198.77 | O55: ₪ 7,039.10 | P55: ₪ 5,460.90 | Q55: ₪ 12,500.00 | R55: ₪ 903,159.67
M56: 14 | N56: ₪ 903,159.67 | O56: ₪ 7,081.34 | P56: ₪ 5,418.66 | Q56: ₪ 12,500.00 | R56: ₪ 896,078.34
M57: 15 | N57: ₪ 896,078.34 | O57: ₪ 7,123.82 | P57: ₪ 5,376.18 | Q57: ₪ 12,500.00 | R57: ₪ 888,954.51
M58: 16 | N58: ₪ 888,954.51 | O58: ₪ 7,166.56 | P58: ₪ 5,333.44 | Q58: ₪ 12,500.00 | R58: ₪ 881,787.95
M59: 17 | N59: ₪ 881,787.95 | O59: ₪ 7,209.56 | P59: ₪ 5,290.44 | Q59: ₪ 12,500.00 | R59: ₪ 874,578.39
M60: 18 | N60: ₪ 874,578.39 | O60: ₪ 7,252.81 | P60: ₪ 5,247.19 | Q60: ₪ 12,500.00 | R60: ₪ 867,325.58
M61: 19 | N61: ₪ 867,325.58 | O61: ₪ 7,296.33 | P61: ₪ 5,203.67 | Q61: ₪ 12,500.00 | R61: ₪ 860,029.25
M62: 20 | N62: ₪ 860,029.25 | O62: ₪ 7,340.10 | P62: ₪ 5,159.90 | Q62: ₪ 12,500.00 | R62: ₪ 852,689.15
M63: 21 | N63: ₪ 852,689.15 | O63: ₪ 7,384.14 | P63: ₪ 5,115.86 | Q63: ₪ 12,500.00 | R63: ₪ 845,305.00
M64: 22 | N64: ₪ 845,305.00 | O64: ₪ 7,428.44 | P64: ₪ 5,071.56 | Q64: ₪ 12,500.00 | R64: ₪ 837,876.56
M65: 23 | N65: ₪ 837,876.56 | O65: ₪ 7,473.01 | P65: ₪ 5,026.99 | Q65: ₪ 12,500.00 | R65: ₪ 830,403.55
M66: 24 | N66: ₪ 830,403.55 | O66: ₪ 7,517.85 | P66: ₪ 4,982.15 | Q66: ₪ 12,500.00 | R66: ₪ 822,885.70
M67: 25 | N67: ₪ 822,885.70 | O67: ₪ 7,562.95 | P67: ₪ 4,937.05 | Q67: ₪ 12,500.00 | R67: ₪ 815,322.74
M68: 26 | N68: ₪ 815,322.74 | O68: ₪ 7,608.33 | P68: ₪ 4,891.67 | Q68: ₪ 12,500.00 | R68: ₪ 807,714.42
M69: 27 | N69: ₪ 807,714.42 | O69: ₪ 7,653.98 | P69: ₪ 4,846.02 | Q69: ₪ 12,500.00 | R69: ₪ 800,060.44
M70: 28 | N70: ₪ 800,060.44 | O70: ₪ 7,699.90 | P70: ₪ 4,800.10 | Q70: ₪ 12,500.00 | R70: ₪ 792,360.54
M71: 29 | N71: ₪ 792,360.54 | O71: ₪ 7,746.09 | P71: ₪ 4,753.91 | Q71: ₪ 12,500.00 | R71: ₪ 784,614.45
M72: 30 | N72: ₪ 784,614.45 | O72: ₪ 7,792.57 | P72: ₪ 4,707.43 | Q72: ₪ 12,500.00 | R72: ₪ 776,821.88
M73: 31 | N73: =R72 -> ₪ 776,821.88 | O73: =Q73-P73 -> ₪ 7,839.32 | P73: =$N$40*N73 -> ₪ 4,660.68 | Q73: ₪ 12,500.00 | R73: =N73-O73 -> ₪ 768,982.56
M74: 32 | N74: ₪ 768,982.56 | O74: ₪ 7,886.35 | P74: ₪ 4,613.65 | Q74: ₪ 12,500.00 | R74: ₪ 761,096.20
M75: 33 | N75: ₪ 761,096.20 | O75: ₪ 7,933.67 | P75: ₪ 4,566.33 | Q75: ₪ 12,500.00 | R75: ₪ 753,162.53
M76: 34 | N76: ₪ 753,162.53 | O76: ₪ 7,981.27 | P76: ₪ 4,518.73 | Q76: ₪ 12,500.00 | R76: ₪ 745,181.26
M77: 35 | N77: ₪ 745,181.26 | O77: ₪ 8,029.15 | P77: ₪ 4,470.85 | Q77: ₪ 12,500.00 | R77: ₪ 737,152.11
M78: 36 | N78: ₪ 737,152.11 | O78: ₪ 8,077.33 | P78: ₪ 4,422.67 | Q78: ₪ 12,500.00 | R78: ₪ 729,074.78
M79: 37 | N79: ₪ 729,074.78 | O79: ₪ 8,125.79 | P79: ₪ 4,374.21 | Q79: ₪ 12,500.00 | R79: ₪ 720,948.99
M80: 38 | N80: ₪ 720,948.99 | O80: ₪ 8,174.54 | P80: ₪ 4,325.46 | Q80: ₪ 12,500.00 | R80: ₪ 712,774.45
M81: 39 | N81: ₪ 712,774.45 | O81: ₪ 8,223.59 | P81: ₪ 4,276.41 | Q81: ₪ 12,500.00 | R81: ₪ 704,550.87
M82: 40 | N82: ₪ 704,550.87 | O82: ₪ 8,272.92 | P82: ₪ 4,227.08 | Q82: ₪ 12,500.00 | R82: ₪ 696,277.94
M83: 41 | N83: ₪ 696,277.94 | O83: ₪ 8,322.56 | P83: ₪ 4,177.44 | Q83: ₪ 12,500.00 | R83: ₪ 687,955.38
M84: 42 | N84: ₪ 687,955.38 | O84: ₪ 8,372.49 | P84: ₪ 4,127.51 | Q84: ₪ 12,500.00 | R84: ₪ 679,582.89
M85: 43 | N85: ₪ 679,582.89 | O85: ₪ 8,422.72 | P85: ₪ 4,077.28 | Q85: ₪ 12,500.00 | R85: ₪ 671,160.17
M86: 44 | N86: ₪ 671,160.17 | O86: ₪ 8,473.26 | P86: ₪ 4,026.74 | Q86: ₪ 12,500.00 | R86: ₪ 662,686.91
M87: 45 | N87: ₪ 662,686.91 | O87: ₪ 8,524.09 | P87: ₪ 3,975.91 | Q87: ₪ 12,500.00 | R87: ₪ 654,162.82
M88: 46 | N88: ₪ 654,162.82 | O88: ₪ 8,575.24 | P88: ₪ 3,924.76 | Q88: ₪ 12,500.00 | R88: ₪ 645,587.58
M89: 47 | N89: ₪ 645,587.58 | O89: ₪ 8,626.68 | P89: ₪ 3,873.32 | Q89: ₪ 12,500.00 | R89: ₪ 636,960.90
M90: 48 | N90: ₪ 636,960.90 | O90: ₪ 8,678.44 | P90: ₪ 3,821.56 | Q90: ₪ 12,500.00 | R90: ₪ 628,282.46
M91: 49 | N91: ₪ 628,282.46 | O91: ₪ 8,730.51 | P91: ₪ 3,769.49 | Q91: ₪ 12,500.00 | R91: ₪ 619,551.95
M92: 50 | N92: ₪ 619,551.95 | O92: ₪ 8,782.89 | P92: ₪ 3,717.11 | Q92: ₪ 12,500.00 | R92: ₪ 610,769.06
M93: 51 | N93: ₪ 610,769.06 | O93: ₪ 8,835.58 | P93: ₪ 3,664.42 | Q93: ₪ 12,500.00 | R93: ₪ 601,933.47
M94: 52 | N94: ₪ 601,933.47 | O94: ₪ 8,888.59 | P94: ₪ 3,611.41 | Q94: ₪ 12,500.00 | R94: ₪ 593,044.88
M95: 53 | N95: ₪ 593,044.88 | O95: ₪ 8,941.92 | P95: ₪ 3,558.08 | Q95: ₪ 12,500.00 | R95: ₪ 584,102.95
M96: 54 | N96: ₪ 584,102.95 | O96: ₪ 8,995.57 | P96: ₪ 3,504.43 | Q96: ₪ 12,500.00 | R96: ₪ 575,107.38
M97: 55 | N97: ₪ 575,107.38 | O97: ₪ 9,049.54 | P97: ₪ 3,450.46 | Q97: ₪ 12,500.00 | R97: ₪ 566,057.84
M98: 56 | N98: ₪ 566,057.84 | O98: ₪ 9,103.84 | P98: ₪ 3,396.16 | Q98: ₪ 12,500.00 | R98: ₪ 556,954.00
M99: 57 | N99: ₪ 556,954.00 | O99: ₪ 9,158.46 | P99: ₪ 3,341.54 | Q99: ₪ 12,500.00 | R99: ₪ 547,795.54
M100: 58 | N100: ₪ 547,795.54 | O100: ₪ 9,213.40 | P100: ₪ 3,286.60 | Q100: ₪ 12,500.00 | R100: ₪ 538,582.14
M101: 59 | N101: ₪ 538,582.14 | O101: ₪ 9,268.68 | P101: ₪ 3,231.32 | Q101: ₪ 12,500.00 | R101: ₪ 529,313.46
M102: 60 | N102: ₪ 529,313.46 | O102: ₪ 9,324.29 | P102: ₪ 3,175.71 | Q102: ₪ 12,500.00 | R102: ₪ 519,989.17
M103: 61 | N103: ₪ 519,989.17 | O103: ₪ 9,380.23 | P103: ₪ 3,119.77 | Q103: ₪ 12,500.00 | R103: ₪ 510,608.93
M104: 62 | N104: ₪ 510,608.93 | O104: ₪ 9,436.51 | P104: ₪ 3,063.49 | Q104: ₪ 12,500.00 | R104: ₪ 501,172.42
M105: 63 | N105: ₪ 501,172.42 | O105: ₪ 9,493.13 | P105: ₪ 3,006.87 | Q105: ₪ 12,500.00 | R105: ₪ 491,679.29
M106: 64 | N106: ₪ 491,679.29 | O106: ₪ 9,550.08 | P106: ₪ 2,949.92 | Q106: ₪ 12,500.00 | R106: ₪ 482,129.21
M107: 65 | N107: ₪ 482,129.21 | O107: ₪ 9,607.38 | P107: ₪ 2,892.62 | Q107: ₪ 12,500.00 | R107: ₪ 472,521.83
M108: 66 | N108: ₪ 472,521.83 | O108: ₪ 9,665.02 | P108: ₪ 2,834.98 | Q108: =$N$41 -> ₪ 12,500.00 | R108: ₪ 462,856.80
M109: 67 | N109: ₪ 462,856.80 | O109: ₪ 9,723.01 | P109: ₪ 2,776.99 | Q109: ₪ 12,500.00 | R109: ₪ 453,133.79
M110: 68 | N110: ₪ 453,133.79 | O110: ₪ 9,781.34 | P110: ₪ 2,718.66 | Q110: ₪ 12,500.00 | R110: ₪ 443,352.45
M111: 69 | N111: ₪ 443,352.45 | O111: ₪ 9,840.03 | P111: ₪ 2,659.97 | Q111: ₪ 12,500.00 | R111: ₪ 433,512.42
M112: 70 | N112: ₪ 433,512.42 | O112: ₪ 9,899.07 | P112: ₪ 2,600.93 | Q112: ₪ 12,500.00 | R112: ₪ 423,613.35
M113: 71 | N113: ₪ 423,613.35 | O113: ₪ 9,958.46 | P113: ₪ 2,541.54 | Q113: ₪ 12,500.00 | R113: ₪ 413,654.90
M114: 72 | N114: ₪ 413,654.90 | O114: ₪ 10,018.21 | P114: ₪ 2,481.79 | Q114: ₪ 12,500.00 | R114: ₪ 403,636.69
M115: 73 | N115: ₪ 403,636.69 | O115: ₪ 10,078.31 | P115: ₪ 2,421.69 | Q115: ₪ 12,500.00 | R115: ₪ 393,558.38
M116: 74 | N116: ₪ 393,558.38 | O116: ₪ 10,138.78 | P116: ₪ 2,361.22 | Q116: ₪ 12,500.00 | R116: ₪ 383,419.60
M117: 75 | N117: ₪ 383,419.60 | O117: ₪ 10,199.61 | P117: ₪ 2,300.39 | Q117: ₪ 12,500.00 | R117: ₪ 373,219.99
M118: 76 | N118: ₪ 373,219.99 | O118: ₪ 10,260.80 | P118: ₪ 2,239.20 | Q118: ₪ 12,500.00 | R118: ₪ 362,959.19
M119: 77 | N119: ₪ 362,959.19 | O119: ₪ 10,322.36 | P119: ₪ 2,177.64 | Q119: ₪ 12,500.00 | R119: ₪ 352,636.83
M120: 78 | N120: ₪ 352,636.83 | O120: ₪ 10,384.29 | P120: ₪ 2,115.71 | Q120: ₪ 12,500.00 | R120: ₪ 342,252.54
M121: 79 | N121: ₪ 342,252.54 | O121: ₪ 10,446.60 | P121: ₪ 2,053.40 | Q121: ₪ 12,500.00 | R121: ₪ 331,805.94
M122: 80 | N122: ₪ 331,805.94 | O122: ₪ 10,509.27 | P122: ₪ 1,990.73 | Q122: ₪ 12,500.00 | R122: ₪ 321,296.67
M123: 81 | N123: ₪ 321,296.67 | O123: ₪ 10,572.32 | P123: ₪ 1,927.68 | Q123: ₪ 12,500.00 | R123: ₪ 310,724.34
M124: 82 | N124: ₪ 310,724.34 | O124: ₪ 10,635.75 | P124: ₪ 1,864.25 | Q124: ₪ 12,500.00 | R124: ₪ 300,088.59
M125: 83 | N125: ₪ 300,088.59 | O125: ₪ 10,699.57 | P125: ₪ 1,800.43 | Q125: ₪ 12,500.00 | R125: ₪ 289,389.02
M126: 84 | N126: ₪ 289,389.02 | O126: ₪ 10,763.76 | P126: ₪ 1,736.24 | Q126: ₪ 12,500.00 | R126: ₪ 278,625.26
M127: 85 | N127: ₪ 278,625.26 | O127: ₪ 10,828.34 | P127: ₪ 1,671.66 | Q127: ₪ 12,500.00 | R127: ₪ 267,796.92
M128: 86 | N128: ₪ 267,796.92 | O128: ₪ 10,893.31 | P128: ₪ 1,606.69 | Q128: ₪ 12,500.00 | R128: ₪ 256,903.62
M129: 87 | N129: ₪ 256,903.62 | O129: ₪ 10,958.66 | P129: ₪ 1,541.34 | Q129: ₪ 12,500.00 | R129: ₪ 245,944.96
M130: 88 | N130: ₪ 245,944.96 | O130: ₪ 11,024.41 | P130: ₪ 1,475.59 | Q130: ₪ 12,500.00 | R130: ₪ 234,920.55
M131: 89 | N131: ₪ 234,920.55 | O131: ₪ 11,090.55 | P131: ₪ 1,409.45 | Q131: ₪ 12,500.00 | R131: ₪ 223,829.99
M132: 90 | N132: ₪ 223,829.99 | O132: ₪ 11,157.09 | P132: ₪ 1,342.91 | Q132: ₪ 12,500.00 | R132: ₪ 212,672.90
M133: 91 | N133: ₪ 212,672.90 | O133: ₪ 11,224.03 | P133: ₪ 1,275.97 | Q133: ₪ 12,500.00 | R133: ₪ 201,448.87
M134: 92 | N134: ₪ 201,448.87 | O134: ₪ 11,291.37 | P134: ₪ 1,208.63 | Q134: ₪ 12,500.00 | R134: ₪ 190,157.50
M135: 93 | N135: ₪ 190,157.50 | O135: ₪ 11,359.12 | P135: ₪ 1,140.88 | Q135: ₪ 12,500.00 | R135: ₪ 178,798.38
M136: 94 | N136: ₪ 178,798.38 | O136: ₪ 11,427.27 | P136: ₪ 1,072.73 | Q136: ₪ 12,500.00 | R136: ₪ 167,371.11
M137: 95 | N137: =R136 -> ₪ 167,371.11 | O137: =Q137-P137 -> ₪ 11,495.83 | P137: =$N$40*N137 -> ₪ 1,004.17 | Q137: ₪ 12,500.00 | R137: =N137-O137 -> ₪ 155,875.28
M138: 96 | N138: ₪ 155,875.28 | O138: ₪ 11,564.80 | P138: ₪ 935.20 | Q138: ₪ 12,500.00 | R138: ₪ 144,310.48
M139: 97 | N139: ₪ 144,310.48 | O139: ₪ 11,634.18 | P139: ₪ 865.82 | Q139: ₪ 12,500.00 | R139: ₪ 132,676.30
M140: 98 | N140: ₪ 132,676.30 | O140: ₪ 11,703.99 | P140: ₪ 796.01 | Q140: ₪ 12,500.00 | R140: ₪ 120,972.31
M141: 99 | N141: ₪ 120,972.31 | O141: ₪ 11,774.21 | P141: ₪ 725.79 | Q141: ₪ 12,500.00 | R141: ₪ 109,198.11
M142: 100 | N142: ₪ 109,198.11 | O142: ₪ 11,844.85 | P142: ₪ 655.15 | Q142: ₪ 12,500.00 | R142: ₪ 97,353.26
M143: 101 | N143: ₪ 97,353.26 | O143: ₪ 11,915.91 | P143: ₪ 584.09 | Q143: ₪ 12,500.00 | R143: ₪ 85,437.35
M144: 102 | N144: ₪ 85,437.35 | O144: ₪ 11,987.40 | P144: ₪ 512.60 | Q144: ₪ 12,500.00 | R144: ₪ 73,449.95
M145: 103 | N145: ₪ 73,449.95 | O145: ₪ 12,059.32 | P145: ₪ 440.68 | Q145: ₪ 12,500.00 | R145: ₪ 61,390.62
M146: 104 | N146: ₪ 61,390.62 | O146: ₪ 12,131.68 | P146: ₪ 368.32 | Q146: ₪ 12,500.00 | R146: ₪ 49,258.95
M147: 105 | N147: ₪ 49,258.95 | O147: ₪ 12,204.46 | P147: ₪ 295.54 | Q147: ₪ 12,500.00 | R147: ₪ 37,054.48
M148: 106 | N148: ₪ 37,054.48 | O148: ₪ 12,277.69 | P148: ₪ 222.31 | Q148: ₪ 12,500.00 | R148: ₪ 24,776.80
M149: 107 | N149: ₪ 24,776.80 | O149: ₪ 12,351.35 | P149: ₪ 148.65 | Q149: ₪ 12,500.00 | R149: ₪ 12,425.45
M150: 108 | N150: =R149 -> ₪ 12,425.45 | O150: =Q150-P150 -> ₪ 12,425.45 | P150: =$N$40*N150 -> ₪ 74.55 | Q150: ₪ 12,500.00 | R150: =N150-O150 -> ₪ -0.00
